bitfinex/quotes_BTCUSD_20220105
["timestamp","ask_amount","ask_price","bid_price","bid_amount"]
[1641343550255,0.39066831,46219.0,46206.0,0.05411351]
[1641343550256,0.045,46210.0,46206.0,0.05411351]
[1641343550450,0.045,46210.0,46205.0,1.98226067]
[1641343551253,0.045,46210.0,46207.0,0.0541154]
[1641343551450,0.045,46210.0,46207.0,0.27791793]
[1641343551698,0.045,46210.0,46207.0,0.0541154]
[1641343551898,0.045,46210.0,46207.0,0.27703437]
[1641343552099,0.045,46210.0,46207.0,0.0541154]
[1641343552299,0.045,46210.0,46207.0,0.0591154]
[1641343553700,0.045,46210.0,46207.0,0.0541154]
[1641343554299,0.045,46210.0,46207.0,0.0581154]
[1641343555553,0.02,46210.0,46207.0,0.0541154]
[1641343556353,0.02,46210.0,46207.0,0.0621154]
[1641343557149,0.02,46210.0,46207.0,0.1162264]
[1641343557549,0.02,46210.0,46207.0,0.1082264]
[1641343557749,0.02,46210.0,46207.0,0.0541154]
[1641343558350,0.02,46210.0,46207.0,0.0591154]
[1641343559400,0.02,46210.0,46207.0,0.16733921]
[1641343559599,0.02,46210.0,46207.0,0.16233921]
[1641343560400,0.02,46210.0,46207.0,0.16733921]
[1641343561000,0.02,46210.0,46207.0,0.3938951]
[1641343561700,0.02,46210.0,46208.0,0.356167]
[1641343561899,0.02,46210.0,46207.0,0.3888951]
[1641343562102,0.02,46210.0,46209.0,0.22360594]
[1641343562700,0.02,46210.0,46207.0,0.22144921]
[1641343562946,0.02,46210.0,46207.0,0.16733921]
[1641343563946,0.02,46210.0,46207.0,0.38962007]
[1641343564347,0.02,46210.0,46208.0,0.05411]
[1641343564947,0.02,46210.0,46207.0,0.39040719]
[1641343565153,0.02,46210.0,46207.0,0.39029599]
[1641343565548,0.02,46210.0,46207.0,0.16233921]
[1641343566148,0.02,46210.0,46207.0,0.21645021]
[1641343566350,0.02,46210.0,46207.0,0.11522381]
[1641343566550,0.02,46210.0,46207.0,0.389179]
[1641343566799,0.02,46210.0,46208.0,0.30787807]
[1641343567599,0.02,46210.0,46208.0,0.36198807]
[1641343567799,0.02,46210.0,46208.0,0.41609807]
[1641343568504,0.02,46210.0,46209.0,0.356167]
[1641343569300,0.02,46210.0,46208.0,0.42509807]
[1641343569702,0.0485,46220.0,46209.0,0.64291526]
[1641343569900,0.0485,46220.0,46213.0,0.10821294]
[1641343570454,0.0485,46220.0,46210.0,0.10950211]
[1641343570852,0.0485,46220.0,46215.0,0.10820673]
[1641343571058,0.0485,46220.0,46217.0,0.05410359]
[1641343571252,0.0020874,46221.0,46217.0,0.05410359]
[1641343571453,0.0020874,46221.0,46216.0,0.33102807]
[1641343572252,0.0020874,46221.0,46216.0,0.40930168]
[1641343572452,0.0020874,46221.0,46219.0,0.05409783]
[1641343574502,0.0020874,46221.0,46219.0,0.05709783]
[1641343576002,0.0020874,46221.0,46219.0,0.05409783]
[1641343576403,0.0020874,46221.0,46219.0,0.05709783]
[1641343577206,0.0020874,46221.0,46219.0,0.27746593]
[1641343577404,0.35076695,46227.0,46219.0,0.05709783]
[1641343577605,0.40076695,46227.0,46222.0,0.05409544]
[1641343577804,0.325451,46226.0,46221.0,0.10819087]
[1641343578047,0.00208818,46225.0,46221.0,0.10819087]
[1641343578248,0.325451,46224.0,46221.0,0.10819087]
[1641343578448,0.00208818,46225.0,46221.0,0.11019087]
[1641343578648,0.05,46224.0,46221.0,0.11019087]
[1641343578850,0.00208818,46225.0,46221.0,0.11019087]
[1641343579449,0.00208818,46225.0,46222.0,0.05409754]
[1641343579450,6.047e-05,46224.0,46222.0,0.05409754]
[1641343580450,6.047e-05,46224.0,46222.0,0.05509754]
[1641343580851,0.0017425,46223.0,46222.0,0.05509754]
[1641343581700,0.0017425,46223.0,46222.0,0.05409754]
[1641343582102,0.56919427,46237.0,46235.0,5.155158]
[1641343582501,0.15609427,46237.0,46235.0,5.155158]
[1641343582902,0.05609427,46237.0,46235.0,5.155158]
[1641343583105,0.162696,46236.0,46235.0,5.155158]
[1641343583300,0.212696,46236.0,46235.0,5.150158]
[1641343585550,0.162696,46236.0,46235.0,5.150158]
[1641343585757,0.0004,46236.0,46235.0,5.150158]
[1641343586351,0.0015989,46236.0,46235.0,5.150158]
[1641343588154,0.1097869,46236.0,46235.0,5.150158]
[1641343588352,0.1597869,46236.0,46235.0,5.150158]
[1641343588855,0.37321369,46236.0,46235.0,5.150158]
[1641343589053,0.47321369,46236.0,46235.0,5.150158]
[1641343589308,0.3082869,46236.0,46235.0,5.150158]
[1641343590102,0.30835251,46236.0,46235.0,5.150158]
[1641343590306,0.20835251,46236.0,46235.0,5.150158]
[1641343592306,0.2522308,46236.0,46235.0,5.150158]
[1641343592504,0.3022308,46236.0,46235.0,5.150158]
[1641343593151,1.6569863,46236.0,46235.0,5.150158]
[1641343593350,2.0169863,46236.0,46235.0,4.717272]
[1641343593552,2.8079863,46236.0,46235.0,4.717272]
[1641343593951,2.8079863,46236.0,46235.0,4.284358]
[1641343594150,2.54778208,46236.0,46235.0,4.284358]
[1641343594352,2.51960208,46236.0,46235.0,4.284358]
[1641343594555,2.53160208,46236.0,46235.0,4.284358]
[1641343595551,0.99555208,46236.0,46235.0,4.284358]
[1641343595753,0.98355208,46236.0,46235.0,4.284358]
[1641343596699,0.77915251,46236.0,46235.0,4.284358]
[1641343597800,0.81515251,46236.0,46235.0,4.284358]
[1641343598004,0.86515251,46236.0,46235.0,4.284358]
[1641343598400,0.90915251,46236.0,46235.0,4.284358]
[1641343599803,0.86515251,46236.0,46235.0,4.284358]
[1641343600450,0.87615251,46236.0,46235.0,4.284358]
[1641343601750,0.86515251,46236.0,46235.0,4.284358]
[1641343602552,0.87515251,46236.0,46235.0,4.284358]
[1641343603353,1.11590693,46236.0,46235.0,4.284358]
[1641343603753,1.10590693,46236.0,46235.0,4.284358]
[1641343604404,0.88296429,46236.0,46235.0,4.284358]
[1641343605405,1.11813862,46236.0,46235.0,4.284358]
[1641343605804,1.10813862,46236.0,46235.0,4.284358]
[1641343606504,1.11813862,46236.0,46235.0,4.284358]
[1641343606905,0.88296429,46236.0,46235.0,4.284358]
[1641343607704,0.87296429,46236.0,46235.0,4.284358]
[1641343608549,0.91796429,46236.0,46235.0,4.284358]
[1641343609751,0.87296429,46236.0,46235.0,4.284358]
[1641343610551,0.88296429,46236.0,46235.0,4.284358]
[1641343611806,0.87296429,46236.0,46235.0,4.284358]
[1641343612608,0.88296429,46236.0,46235.0,4.284358]
[1641343613410,2.54453221,46236.0,46235.0,4.284358]
[1641343613609,3.08646515,46236.0,46235.0,3.851472]
[1641343613809,4.05076615,46236.0,46235.0,3.851472]
[1641343614007,4.37196779,46236.0,46235.0,2.552643]
[1641343614209,4.42608779,46236.0,46235.0,2.552643]
[1641343614410,4.37196779,46236.0,46235.0,2.552643]
[1641343614608,1.13396146,46229.0,46217.0,0.00123867]
[1641343614813,1.13396146,46229.0,46212.0,0.0047]
[1641343614814,0.715043,46218.0,46212.0,0.0047]
[1641343615014,0.0485,46217.0,46212.0,0.0047]
[1641343615214,0.0485,46217.0,46208.0,0.02226609]
[1641343615455,0.0485,46217.0,46208.0,0.02099]
[1641343615656,0.28737157,46216.0,46208.0,0.02099]
[1641343615858,0.35448203,46212.0,46208.0,0.02099]
[1641343616058,0.102623,46211.0,46208.0,0.02099]
[1641343616456,0.113623,46211.0,46208.0,0.02099]
[1641343616857,0.167746,46211.0,46208.0,0.02099]
[1641343617257,0.054123,46210.0,46208.0,0.02099]
[1641343617457,0.0485,46209.0,46208.0,0.02099]
[1641343618356,0.0485,46209.0,46208.0,0.60099]
[1641343618558,0.0635,46209.0,46208.0,0.60099]
[1641343619902,0.0485,46209.0,46208.0,0.60099]
[1641343620304,0.0485,46209.0,46208.0,1.74057246]
[1641343620507,0.0615,46209.0,46208.0,1.74057246]
[1641343621104,0.0615,46209.0,46208.0,0.84057246]
[1641343621305,0.0615,46209.0,46208.0,1.17557246]
[1641343621505,0.0615,46209.0,46208.0,0.78557246]
[1641343621705,0.0485,46209.0,46208.0,0.78557246]
[1641343622505,0.0615,46209.0,46208.0,0.54599]
[1641343623171,0.0615,46209.0,46208.0,0.92599]
[1641343623770,0.0485,46209.0,46208.0,0.92599]
[1641343624469,0.0625,46209.0,46208.0,0.92599]
[1641343624669,0.0625,46209.0,46208.0,0.54599]
[1641343625269,0.0625,46209.0,46208.0,1.04599]
[1641343626370,0.0485,46209.0,46208.0,1.04599]
[1641343626570,0.0595,46209.0,46208.0,1.04599]
[1641343627309,0.0595,46209.0,46208.0,1.2930349]
[1641343627310,0.011,46209.0,46208.0,1.2930349]
[1641343627507,0.011,46209.0,46208.0,1.6492019]
[1641343628006,0.0485,46218.0,46215.0,0.00129754]
[1641343628411,0.10464949,46224.0,46215.0,0.2980033]
[1641343628609,0.036,46218.0,46216.0,0.27538759]
[1641343629009,0.036,46218.0,46215.0,0.3030033]
[1641343629409,0.036,46218.0,46216.0,0.25134375]
[1641343629610,0.036,46218.0,46215.0,0.3571043]
[1641343629810,0.00204549,46224.0,46215.0,0.5971198]
[1641343630010,0.00204549,46224.0,46219.0,0.05410178]
[1641343630210,0.00204549,46224.0,46216.0,0.10820124]
[1641343630653,0.05504549,46224.0,46216.0,0.10820124]
[1641343630958,0.10914949,46224.0,46216.0,0.10820124]
[1641343631352,0.10914949,46224.0,46218.0,0.05410438]
[1641343631754,0.05614949,46224.0,46218.0,0.05410438]
[1641343632453,0.00146945,46223.0,46218.0,0.05410438]
[1641343632652,0.054106,46222.0,46218.0,0.05410438]
[1641343632853,0.054106,46222.0,46216.0,0.05410655]
[1641343633054,0.054106,46222.0,46215.0,0.00129754]
[1641343633954,0.054112,46218.0,46215.0,0.00129754]
[1641343634202,0.05,46220.0,46209.0,0.11311916]
[1641343634501,0.02,46218.0,46209.0,0.11432205]
[1641343634900,0.39133627,46218.0,46209.0,0.11432205]
[1641343635102,0.39133627,46218.0,46210.0,0.05411294]
[1641343635300,0.05,46217.0,46209.0,0.00610289]
[1641343635502,0.39133627,46218.0,46209.0,0.00610289]
[1641343635503,0.25277676,46216.0,46209.0,0.00610289]
[1641343636003,0.29043379,46211.0,46209.0,0.00120289]
[1641343636401,0.34043379,46211.0,46209.0,0.00120289]
[1641343636606,0.34243379,46211.0,46209.0,0.00120289]
[1641343637805,0.34389525,46211.0,46209.0,0.00120289]
[1641343638054,0.05346146,46211.0,46209.0,0.00120289]
[1641343638453,0.00346146,46211.0,46209.0,0.00120289]
[1641343638654,0.00246146,46211.0,46209.0,0.00120289]
[1641343639855,0.00146146,46211.0,46209.0,0.00120289]
[1641343640255,0.05557946,46211.0,46209.0,0.00120289]
[1641343640655,0.06557946,46211.0,46209.0,0.00120289]
[1641343641257,0.01146146,46211.0,46208.0,1.04219289]
[1641343642103,0.01120099,46211.0,46208.0,1.04219289]
[1641343642303,0.00120099,46211.0,46208.0,1.09630814]
[1641343642705,0.00620099,46211.0,46208.0,1.09630814]
[1641343643304,0.00120099,46211.0,46209.0,0.90905636]
[1641343643505,9.9e-07,46211.0,46210.0,0.62974403]
[1641343643904,0.00207072,46224.0,46216.0,0.05410677]
[1641343644305,0.054107,46221.0,46216.0,0.05410677]
[1641343644705,0.054107,46221.0,46216.0,0.05710677]
[1641343645854,0.054112,46217.0,46213.0,0.05410942]
[1641343646051,0.104112,46217.0,46211.0,0.0046]
[1641343646250,0.104112,46217.0,46210.0,0.00126476]
[1641343646251,0.05,46217.0,46210.0,0.00126476]
[1641343646450,0.1,46217.0,46210.0,0.00126476]
[1641343646655,0.101,46217.0,46211.0,0.027]
[1641343647451,0.054114,46215.0,46211.0,0.027]
[1641343647653,0.05,46216.0,46211.0,0.027]
[1641343647850,0.05,46216.0,46208.0,0.54219289]
[1641343648051,0.1,46220.0,46208.0,0.54219289]
[1641343648250,0.0485,46219.0,46208.0,0.54219289]
[1641343648452,0.04660393,46218.0,46208.0,0.54219289]
[1641343648651,0.10071793,46218.0,46210.0,0.05411396]
[1641343648852,0.054114,46215.0,46210.0,0.05411396]
[1641343649052,0.154114,46215.0,46210.0,0.05411396]
[1641343649309,0.154114,46215.0,46208.0,0.54219289]
[1641343650506,0.154114,46215.0,46211.0,0.05411278]
[1641343650706,0.157114,46215.0,46211.0,0.05411278]
[1641343651308,0.103,46215.0,46211.0,0.05411278]
[1641343651507,0.053,46215.0,46211.0,0.05411278]
[1641343651706,0.05,46214.0,46211.0,0.05411278]
[1641343652108,0.05,46216.0,46211.0,0.05411278]
[1641343652407,0.054114,46215.0,46211.0,0.05411278]
[1641343654461,0.05,46216.0,46208.0,0.65041393]
[1641343654657,0.022,46215.0,46208.0,0.65041393]
[1641343655760,0.022,46215.0,46211.0,0.05411082]
[1641343655960,0.05,46215.0,46211.0,0.05411082]
[1641343656159,0.05,46215.0,46208.0,0.65041393]
[1641343656359,0.1,46216.0,46208.0,0.65041393]
[1641343656560,0.05,46215.0,46208.0,0.54219289]
[1641343656805,0.053,46215.0,46208.0,0.59019289]
[1641343657011,0.104115,46214.0,46208.0,0.59019289]
[1641343657407,0.05,46213.0,46208.0,0.59019289]
[1641343657806,0.05,46213.0,46208.0,0.54219289]
[1641343658008,0.05,46213.0,46210.0,0.05411427]
[1641343658607,0.053,46213.0,46210.0,0.08211427]
[1641343659908,0.05,46213.0,46210.0,0.05411427]
[1641343660109,0.29698095,46211.0,46210.0,0.05411427]
[1641343660312,0.29698095,46211.0,46204.0,0.349513]
[1641343660313,0.0012782,46207.0,46203.0,0.005]
[1641343660568,0.0485,46206.0,46200.0,0.5944]
[1641343660767,0.0485,46206.0,46196.0,0.26885378]
[1641343661165,0.25399371,46201.0,46196.0,0.26885378]
[1641343661367,0.0485,46200.0,46195.0,0.0048]
[1641343661566,0.0485,46200.0,46189.0,0.70664225]
[1641343661868,0.0485,46200.0,46188.0,0.26885378]
[1641343662466,0.108272,46199.0,46196.0,1.79675205]
[1641343662666,0.156772,46200.0,46196.0,1.79675205]
[1641343662667,0.0485,46198.0,46196.0,1.79675205]
[1641343662867,0.0485,46197.0,46196.0,1.79675205]
[1641343664710,0.1085,46197.0,46196.0,1.79675205]
[1641343665907,0.0985,46197.0,46196.0,1.79675205]
[1641343666109,0.05,46197.0,46196.0,1.79675205]
[1641343666506,0.0511999,46198.0,46196.0,1.79675205]
[1641343666507,0.0011999,46198.0,46196.0,1.79675205]
[1641343666707,0.009,46197.0,46196.0,1.79675205]
[1641343667708,0.009,46197.0,46196.0,2.09675205]
[1641343667951,0.0011999,46198.0,46196.0,1.79675205]
[1641343668752,0.0101999,46198.0,46196.0,1.79675205]
[1641343670154,0.0011999,46198.0,46196.0,1.79675205]
[1641343670755,0.0101999,46198.0,46196.0,1.79675205]
[1641343672003,0.0101999,46198.0,46197.0,1.83523824]
[1641343672507,0.0011999,46198.0,46197.0,1.59]
[1641343672705,0.0101999,46198.0,46197.0,1.59]
[1641343673404,0.0101999,46198.0,46197.0,2.25842941]
[1641343674006,0.0011999,46198.0,46197.0,1.90226241]
[1641343674605,0.0011999,46198.0,46197.0,2.25967892]
[1641343674806,0.0051999,46198.0,46197.0,2.25967892]
[1641343676046,0.0011999,46198.0,46197.0,2.25967892]
[1641343676453,0.0011999,46198.0,46195.0,0.05413148]
[1641343676454,0.00121779,46191.0,46187.0,1.495]
[1641343676651,0.102644,46190.0,46187.0,1.495]
[1641343676850,0.102644,46190.0,46184.0,0.005]
[1641343677049,0.202644,46190.0,46182.0,0.3028]
[1641343677248,0.1485,46190.0,46182.0,0.3028]
[1641343677451,0.43760248,46190.0,46183.0,0.24673166]
[1641343677850,0.054144,46189.0,46188.0,0.38370518]
[1641343678250,0.1485,46190.0,46188.0,0.38370518]
[1641343678751,0.1065,46190.0,46188.0,0.38370518]
[1641343679204,0.1065,46190.0,46188.0,0.43784402]
[1641343679404,0.0565,46190.0,46188.0,0.43784402]
[1641343679603,0.0565,46190.0,46188.0,0.38370518]
[1641343680105,0.0485,46190.0,46188.0,0.38370518]
[1641343680702,0.0565,46190.0,46188.0,0.38370518]
[1641343681703,0.0565,46190.0,46188.0,0.43784467]
[1641343681904,0.0485,46190.0,46188.0,0.43784467]
[1641343682706,0.0555,46190.0,46188.0,0.43784467]
[1641343682961,0.0555,46190.0,46188.0,0.38370518]
[1641343683551,0.0555,46190.0,46188.0,0.60370518]
[1641343683953,0.0485,46190.0,46188.0,0.60370518]
[1641343684152,0.0485,46190.0,46188.0,0.65784439]
[1641343684353,0.0485,46190.0,46188.0,0.60370518]
[1641343684554,0.0485,46190.0,46188.0,0.22]
[1641343684753,0.0565,46190.0,46188.0,0.22]
[1641343684953,0.110643,46190.0,46188.0,0.22]
[1641343685354,0.1065,46190.0,46188.0,0.22]
[1641343685558,0.0565,46190.0,46188.0,0.22]
[1641343685954,0.0485,46190.0,46188.0,0.22]
[1641343686356,0.4094,46200.0,46188.0,0.22]
[1641343686357,0.0011999,46198.0,46189.0,0.64922739]
[1641343686555,0.0011999,46198.0,46190.0,0.356167]
[1641343686802,0.0011999,46198.0,46189.0,0.54753238]
[1641343687205,0.0011999,46198.0,46189.0,0.55243238]
[1641343687405,0.0011999,46198.0,46193.0,0.25617597]
[1641343687703,0.30209173,46203.0,46195.0,0.32731021]
[1641343687903,0.29829163,46203.0,46195.0,0.32731021]
[1641343688109,0.00843607,46203.0,46195.0,0.32731021]
[1641343688304,0.0485,46206.0,46195.0,0.32731021]
[1641343688804,0.012,46203.0,46195.0,0.32731021]
[1641343689004,0.012,46203.0,46198.0,0.05412862]
[1641343689204,0.066129,46203.0,46198.0,0.05412862]
[1641343690105,0.054129,46203.0,46198.0,0.05412862]
[1641343690559,0.054132,46202.0,46195.0,0.05413128]
[1641343690765,0.054132,46200.0,46195.0,0.05413128]
[1641343690959,0.08723877,46200.0,46193.0,0.25617597]
[1641343691158,0.04761768,46199.0,46193.0,0.25617597]
[1641343691364,0.05,46200.0,46193.0,0.25617597]
[1641343691658,0.1,46200.0,46195.0,0.3245124]
[1641343691857,0.05,46200.0,46195.0,0.3245124]
[1641343692057,0.104132,46201.0,46195.0,0.3245124]
[1641343692859,0.1578434,46201.0,46195.0,0.3245124]
[1641343693060,0.113132,46201.0,46195.0,0.37864343]
[1641343693262,0.054133,46199.0,46193.0,0.47617597]
[1641343693457,0.054133,46199.0,46193.0,0.22]
[1641343694411,0.26744954,46197.0,46193.0,0.22]
[1641343694711,0.05,46196.0,46193.0,0.22]
[1641343696011,0.10119992,46199.0,46194.0,0.05413281]
[1641343696210,0.13860594,46199.0,46194.0,0.05413281]
[1641343696410,0.32706618,46199.0,46193.0,0.22]
[1641343696611,0.05,46198.0,46193.0,0.22]
[1641343697810,0.68235412,46199.0,46193.0,0.22]
[1641343698655,0.67635412,46199.0,46193.0,0.22]
[1641343698856,0.054136,46196.0,46193.0,0.22]
[1641343699556,0.05533595,46196.0,46193.0,0.22]
[1641343699955,0.00119995,46196.0,46193.0,0.27413348]
[1641343701064,0.00119995,46196.0,46193.0,0.22]
[1641343701259,0.05119995,46196.0,46193.0,0.22]
[1641343701909,0.00119995,46196.0,46193.0,0.22]
[1641343702711,0.00819995,46196.0,46193.0,0.22]
[1641343703614,0.00819995,46196.0,46194.0,0.05413332]
[1641343704010,0.00119995,46196.0,46194.0,0.05413332]
[1641343704813,0.01019995,46196.0,46194.0,0.05413332]
[1641343705954,0.00119995,46196.0,46194.0,0.05413332]
[1641343706754,0.00919995,46196.0,46194.0,0.05413332]
[1641343707958,0.00119995,46196.0,46194.0,0.05413332]
[1641343708762,0.00819995,46196.0,46194.0,0.05413332]
[1641343709604,0.00819995,46196.0,46193.0,0.22]
[1641343710607,0.00119995,46196.0,46193.0,0.22]
[1641343710807,0.27146055,46196.0,46193.0,0.22]
[1641343711108,0.32146055,46196.0,46193.0,0.22]
[1641343711708,0.37146055,46196.0,46193.0,0.22]
[1641343712110,0.054137,46195.0,46193.0,0.22]
[1641343712813,0.059137,46195.0,46193.0,0.22]
[1641343713476,0.005,46195.0,46193.0,0.22]
[1641343714075,0.36546055,46196.0,46193.0,0.22]
[1641343714276,0.10119995,46196.0,46193.0,0.22]
[1641343714481,0.10533695,46196.0,46193.0,0.22]
[1641343714676,0.054137,46195.0,46193.0,0.22]
[1641343715275,0.11319995,46196.0,46193.0,0.22]
[1641343715677,0.06319995,46196.0,46193.0,0.22]
[1641343716076,0.01319995,46196.0,46193.0,0.22]
[1641343716907,0.07333595,46196.0,46193.0,0.22]
[1641343717111,0.10533595,46196.0,46193.0,0.22]
[1641343717308,0.1050755,46196.0,46193.0,0.22]
[1641343717508,0.0509395,46196.0,46193.0,0.22]
[1641343718108,0.0009395,46196.0,46193.0,0.22]
[1641343718908,0.0610755,46196.0,46193.0,0.22]
[1641343719118,0.28000177,46195.0,46193.0,0.22]
[1641343719313,0.60808403,46194.0,46193.0,0.22]
[1641343719510,1.25088881,46194.0,46193.0,0.22]
[1641343719708,1.08203503,46194.0,46193.0,0.22]
[1641343720210,1.64821989,46194.0,46193.0,0.22]
[1641343720755,1.75652089,46194.0,46193.0,0.22]
[1641343720954,1.78172089,46194.0,46193.0,0.22]
[1641343722156,1.76872089,46194.0,46193.0,0.22]
[1641343722558,1.86872089,46194.0,46193.0,0.22]
[1641343722760,1.76872089,46194.0,46193.0,0.22]
[1641343722960,1.77972089,46194.0,46193.0,0.22]
[1641343723160,1.97972089,46194.0,46193.0,0.22]
[1641343723660,1.97972089,46194.0,46193.0,0.21969964]
[1641343723860,1.97972089,46194.0,46193.0,0.21894764]
[1641343724062,1.76872089,46194.0,46193.0,0.21894764]
[1641343724911,1.77872089,46194.0,46193.0,0.21894764]
[1641343726113,1.76872089,46194.0,46193.0,0.21894764]
[1641343726924,1.77972089,46194.0,46193.0,0.21894764]
[1641343728260,1.76872089,46194.0,46193.0,0.21894764]
[1641343728860,1.77872089,46194.0,46193.0,0.21894764]
[1641343730061,1.76872089,46194.0,46193.0,0.21894764]
[1641343730963,1.77743686,46194.0,46193.0,0.21894764]
[1641343731712,1.66523686,46194.0,46193.0,0.21894764]
[1641343731913,1.76523686,46194.0,46193.0,0.21894764]
[1641343732914,1.76723686,46194.0,46193.0,0.21894764]
[1641343734214,1.75523686,46194.0,46193.0,0.21894764]
[1641343734619,1.65523686,46194.0,46193.0,0.21894764]
[1641343734914,1.66623686,46194.0,46193.0,0.21894764]
[1641343736259,1.65523686,46194.0,46193.0,0.21894764]
[1641343736461,1.75523686,46194.0,46193.0,0.21894764]
[1641343737064,1.76523686,46194.0,46193.0,0.21894764]
[1641343738264,1.75523686,46194.0,46193.0,0.21894764]
[1641343739064,1.76523686,46194.0,46193.0,0.21894764]
[1641343740315,1.75523686,46194.0,46193.0,0.21894764]
[1641343740918,1.76523686,46194.0,46193.0,0.21894764]
[1641343742120,1.75523686,46194.0,46193.0,0.21894764]
[1641343743062,1.76623686,46194.0,46193.0,0.21894764]
[1641343744360,1.75523686,46194.0,46193.0,0.21894764]
[1641343744861,1.089052,46194.0,46193.0,0.21894764]
[1641343745165,0.443752,46194.0,46193.0,0.21894764]
[1641343745362,0.335451,46194.0,46193.0,0.21894764]
[1641343745860,0.335451,46194.0,46193.0,1.23894764]
[1641343746061,0.01,46194.0,46193.0,1.23894764]
[1641343746261,0.054148,46195.0,46193.0,1.23894764]
[1641343746925,0.054137,46197.0,46193.0,1.23894764]
[1641343747126,0.013,46195.0,46194.0,0.24872558]
[1641343747328,0.013,46195.0,46194.0,1.73872558]
[1641343747527,0.008,46195.0,46194.0,1.73872558]
[1641343747730,0.008,46195.0,46194.0,1.75175069]
[1641343748427,0.0486,46200.0,46194.0,1.75175069]
[1641343748925,0.0486,46200.0,46194.0,0.26175069]
[1641343749128,0.0706,46200.0,46193.0,0.32721364]
[1641343749326,0.1206,46200.0,46195.0,0.05413408]
[1641343749628,0.054133,46198.0,46193.0,0.32721364]
[1641343750466,0.054133,46198.0,46195.0,0.0541329]
[1641343750862,0.05533291,46198.0,46195.0,0.0541329]
[1641343751062,0.07233291,46198.0,46193.0,0.21894764]
[1641343751262,0.054137,46196.0,46193.0,0.21894764]
[1641343752066,0.054137,46196.0,46194.0,0.05413686]
[1641343753069,0.071137,46196.0,46194.0,0.05413686]
[1641343754313,0.054137,46196.0,46194.0,0.05413686]
[1641343755013,0.071137,46196.0,46194.0,0.05413686]
[1641343756317,0.054137,46196.0,46194.0,0.05413686]
[1641343757017,0.071137,46196.0,46194.0,0.05413686]
[1641343758262,0.054137,46196.0,46194.0,0.05413686]
[1641343759162,0.065137,46196.0,46194.0,0.05413686]
[1641343759561,0.065137,46196.0,46193.0,0.21894764]
[1641343759762,0.24960485,46195.0,46193.0,0.21894764]
[1641343759963,0.31423959,46194.0,46193.0,0.21894764]
[1641343760161,0.41423959,46194.0,46193.0,0.21894764]
[1641343760461,0.70770181,46194.0,46193.0,0.21894764]
[1641343760662,1.03315281,46194.0,46193.0,0.21894764]
[1641343760866,0.77305922,46194.0,46193.0,0.21894764]
[1641343761061,0.83011082,46194.0,46193.0,0.21894764]
[1641343761263,1.0354519,46194.0,46193.0,0.21894764]
[1641343761712,1.0839519,46194.0,46193.0,0.21894764]
[1641343762412,1.0719519,46194.0,46193.0,0.21894764]
[1641343763012,1.0839519,46194.0,46193.0,0.21894764]
[1641343764715,1.0719519,46194.0,46193.0,0.21894764]
[1641343765116,1.0829519,46194.0,46193.0,0.21894764]
[1641343766364,1.0719519,46194.0,46193.0,0.21894764]
[1641343767065,1.0849519,46194.0,46193.0,0.21894764]
[1641343768268,1.0719519,46194.0,46193.0,0.21894764]
[1641343769212,1.0829519,46194.0,46193.0,0.21894764]
[1641343769913,0.83255922,46194.0,46193.0,0.21894764]
[1641343770313,0.528097,46194.0,46193.0,0.21894764]
[1641343771116,0.78706281,46194.0,46193.0,0.21894764]
[1641343771316,0.78831739,46194.0,46193.0,0.21894764]
[1641343771613,0.53935158,46194.0,46193.0,0.21894764]
[1641343772215,0.82523401,46194.0,46193.0,0.21894764]
[1641343772416,0.81523401,46194.0,46193.0,0.21894764]
[1641343773064,0.82497943,46194.0,46193.0,0.21894764]
[1641343774366,0.81397943,46194.0,46193.0,0.21894764]
[1641343775166,0.82397943,46194.0,46193.0,0.21894764]
[1641343775366,0.538097,46194.0,46193.0,0.21894764]
[1641343776371,0.52929698,46194.0,46193.0,0.21894764]
[1641343777213,0.54029698,46194.0,46193.0,0.21894764]
[1641343778313,0.52929698,46194.0,46193.0,0.21894764]
[1641343779118,0.79108459,46194.0,46193.0,0.21894764]
[1641343779716,0.54129698,46194.0,46193.0,0.21894764]
[1641343780318,0.52929698,46194.0,46193.0,0.21894764]
[1641343780970,0.77805216,46194.0,46193.0,0.21894764]
[1641343781171,0.79005216,46194.0,46193.0,0.21894764]
[1641343781372,0.83400449,46194.0,46193.0,0.21894764]
[1641343782374,0.57324931,46194.0,46193.0,0.21894764]
[1641343783174,0.58324931,46194.0,46193.0,0.21894764]
[1641343784416,0.57324931,46194.0,46193.0,0.21894764]
[1641343785217,0.58524931,46194.0,46193.0,0.21894764]
[1641343786419,0.57324931,46194.0,46193.0,0.21894764]
[1641343787218,0.58624931,46194.0,46193.0,0.21894764]
[1641343787819,0.83497279,46194.0,46193.0,0.21894764]
[1641343788069,0.83719343,46194.0,46193.0,0.21894764]
[1641343788470,0.82419343,46194.0,46193.0,0.21894764]
[1641343788969,0.57324931,46194.0,46193.0,0.21894764]
[1641343789170,0.58424931,46194.0,46193.0,0.21894764]
[1641343790070,0.58424931,46194.0,46193.0,0.21994764]
[1641343790570,0.57324931,46194.0,46193.0,0.21994764]
[1641343791171,0.58524931,46194.0,46193.0,0.21994764]
[1641343792318,0.57324931,46194.0,46193.0,0.21994764]
[1641343793118,0.58424931,46194.0,46193.0,0.21994764]
[1641343794419,0.57324931,46194.0,46193.0,0.21994764]
[1641343795217,0.83474787,46194.0,46193.0,0.21994764]
[1641343795469,0.58624931,46194.0,46193.0,0.21994764]
[1641343795869,0.84232157,46194.0,46193.0,0.21994764]
[1641343796471,0.82932157,46194.0,46193.0,0.21994764]
[1641343797070,0.57324931,46194.0,46193.0,0.21994764]
[1641343797274,0.58524931,46194.0,46193.0,0.21994764]
[1641343798472,0.57324931,46194.0,46193.0,0.21994764]
[1641343799222,0.58424931,46194.0,46193.0,0.21994764]
[1641343800523,0.57324931,46194.0,46193.0,0.21994764]
[1641343801125,0.58424931,46194.0,46193.0,0.21994764]
[1641343802429,0.57324931,46194.0,46193.0,0.21994764]
[1641343803070,0.82157456,46194.0,46193.0,0.21994764]
[1641343803269,0.83257456,46194.0,46193.0,0.21994764]
[1641343803870,0.58424931,46194.0,46193.0,0.21994764]
[1641343804571,0.57324931,46194.0,46193.0,0.21994764]
[1641343805170,0.58424931,46194.0,46193.0,0.21994764]
[1641343806375,0.57324931,46194.0,46193.0,0.21994764]